[Event "Titled Tuesday Blitz May 9 Early 2023"]
[White "Ramirez, Maria Eugenia"]
[Black "Pasti, Aron"]
[WhiteFideId "3301680"]
[BlackFideId "785857"]
[WhiteElo "1842"]
[BlackElo "2173"]
[Result "0-1"]
[Round "03"]
[TimeControl "180+2"]
[Date "2023.05.09"]
[WhiteClock "0:01:05"]
[BlackClock "0:01:49"]

1. e4 {[%clk 0:03:00]}  c5 {[%clk 0:02:53]} 2. c3 {[%clk 0:03:00]}  d5 {[%clk 0:02:49]} 3. exd5 {[%clk 0:03:00]}  Qxd5 {[%clk 0:02:50]} 4. Nf3 {[%clk 0:03:00]}  e6 {[%clk 0:02:42]} 5. d4 {[%clk 0:02:57]}  Nc6 {[%clk 0:02:40]} 6. Na3 {[%clk 0:02:54]}  cxd4 {[%clk 0:02:40]} 7. Nb5 {[%clk 0:02:52]}  Qd8 {[%clk 0:02:40]} 8. Nbxd4 {[%clk 0:02:51]}  Nf6 {[%clk 0:02:38]} 9. Nxc6 {[%clk 0:02:50]}  Qxd1+ {[%clk 0:02:39]} 10. Kxd1 {[%clk 0:02:48]}  bxc6 {[%clk 0:02:40]} 11. Bd3 {[%clk 0:02:45]}  c5 {[%clk 0:02:39]} 12. Ke2 {[%clk 0:02:43]}  Bb7 {[%clk 0:02:38]} 13. Bb5+ {[%clk 0:02:38]}  Ke7 {[%clk 0:02:35]} 14. Bg5 {[%clk 0:02:31]}  h6 {[%clk 0:02:35]} 15. Bh4 {[%clk 0:02:29]}  g5 {[%clk 0:02:36]} 16. Bg3 {[%clk 0:02:29]}  Ne4 {[%clk 0:02:33]} 17. Rhe1 {[%clk 0:02:23]}  Bg7 {[%clk 0:02:32]} 18. Ne5 {[%clk 0:02:01]}  Nxg3+ {[%clk 0:02:31]} 19. hxg3 {[%clk 0:01:59]}  Bxe5 {[%clk 0:02:32]} 20. Kf1 {[%clk 0:01:58]}  Bf6 {[%clk 0:02:30]} 21. f4 {[%clk 0:01:49]}  gxf4 {[%clk 0:02:26]} 22. gxf4 {[%clk 0:01:49]}  Rhg8 {[%clk 0:02:27]} 23. Re2 {[%clk 0:01:46]}  Rg4 {[%clk 0:02:13]} 24. Rf2 {[%clk 0:01:39]}  Rag8 {[%clk 0:02:13]} 25. Rd1 {[%clk 0:01:33]}  Bxg2+ {[%clk 0:02:03]} 26. Ke2 {[%clk 0:01:32]}  Bh4 {[%clk 0:01:51]} 27. Rd7+ {[%clk 0:01:28]}  Kf6 {[%clk 0:01:51]} 28. Rf3 {[%clk 0:01:19]}  Bxf3+ {[%clk 0:01:51]} 29. Kxf3 {[%clk 0:01:20]}  Rg2 {[%clk 0:01:51]} 30. Ke4 {[%clk 0:01:20]}  R8g3 {[%clk 0:01:50]} 31. Rxa7 {[%clk 0:01:17]}  Rg1 {[%clk 0:01:49]} 32. f5 {[%clk 0:01:05]}  Re1+ {[%clk 0:01:49]} 33. Kf4 {[%clk 0:01:05]}  e5# {[%clk 0:01:49]} 0-1


[Site "https://www.chess.com"]

[Event "Titled Tuesday Blitz May 9 Early 2023"]
[White "Floresvillar Gonzalez, Luis Migu"]
[Black "Hercegovac, Neven"]
[WhiteFideId "5100542"]
[BlackFideId "2839135"]
[WhiteElo "2040"]
[BlackElo "2075"]
[Result "1-0"]
[Round "03"]
[TimeControl "180+2"]
[Date "2023.05.09"]
[WhiteClock "0:00:29"]
[BlackClock "0:00:00"]

1. d4 {[%clk 0:03:00]}  d5 {[%clk 0:02:52]} 2. c3 {[%clk 0:03:00]}  Nf6 {[%clk 0:02:51]} 3. Bg5 {[%clk 0:02:59]}  e6 {[%clk 0:02:46]} 4. Nd2 {[%clk 0:02:54]}  Be7 {[%clk 0:02:46]} 5. e3 {[%clk 0:02:51]}  O-O {[%clk 0:02:30]} 6. Bd3 {[%clk 0:02:49]}  Nbd7 {[%clk 0:02:04]} 7. f4 {[%clk 0:02:46]}  h6 {[%clk 0:02:00]} 8. Bxf6 {[%clk 0:02:46]}  Nxf6 {[%clk 0:01:56]} 9. Ngf3 {[%clk 0:02:42]}  c5 {[%clk 0:01:54]} 10. O-O {[%clk 0:02:40]}  b6 {[%clk 0:01:51]} 11. Ne5 {[%clk 0:02:38]}  Bb7 {[%clk 0:01:51]} 12. Qf3 {[%clk 0:02:31]}  Qc7 {[%clk 0:01:46]} 13. Rae1 {[%clk 0:02:19]}  a6 {[%clk 0:01:39]} 14. g4 {[%clk 0:02:18]}  Nd7 {[%clk 0:01:38]} 15. Nxd7 {[%clk 0:02:07]}  Qxd7 {[%clk 0:01:39]} 16. f5 {[%clk 0:02:07]}  Bg5 {[%clk 0:01:29]} 17. Qg3 {[%clk 0:01:59]}  cxd4 {[%clk 0:01:24]} 18. cxd4 {[%clk 0:01:59]}  a5 {[%clk 0:01:13]} 19. h4 {[%clk 0:01:59]}  Be7 {[%clk 0:01:12]} 20. g5 {[%clk 0:01:49]}  hxg5 {[%clk 0:01:09]} 21. hxg5 {[%clk 0:01:48]}  Ba6 {[%clk 0:01:09]} 22. Bxa6 {[%clk 0:01:47]}  Rxa6 {[%clk 0:01:10]} 23. f6 {[%clk 0:01:47]}  Bd6 {[%clk 0:01:09]} 24. Qh4 {[%clk 0:01:46]}  Bb4 {[%clk 0:00:56]} 25. fxg7 {[%clk 0:01:39]}  Kxg7 {[%clk 0:00:57]} 26. Qh6+ {[%clk 0:01:38]}  Kg8 {[%clk 0:00:51]} 27. Re2 {[%clk 0:01:37]}  f5 {[%clk 0:00:32]} 28. gxf6 {[%clk 0:01:33]}  Qh7 {[%clk 0:00:22]} 29. Qg5+ {[%clk 0:01:10]}  Kh8 {[%clk 0:00:21]} 30. Rh2 {[%clk 0:01:09]}  Rg8 {[%clk 0:00:21]} 31. Rxh7+ {[%clk 0:01:04]}  Kxh7 {[%clk 0:00:21]} 32. Qxg8+ {[%clk 0:00:46]}  Kxg8 {[%clk 0:00:22]} 33. Nf3 {[%clk 0:00:46]}  Ra8 {[%clk 0:00:19]} 34. Ne5 {[%clk 0:00:45]}  Rf8 {[%clk 0:00:18]} 35. Rf3 {[%clk 0:00:41]}  Bd6 {[%clk 0:00:18]} 36. f7+ {[%clk 0:00:38]}  Kg7 {[%clk 0:00:18]} 37. Rg3+ {[%clk 0:00:37]}  Kf6 {[%clk 0:00:17]} 38. Rg8 {[%clk 0:00:35]}  Rxf7 {[%clk 0:00:08]} 39. Nxf7 {[%clk 0:00:35]}  Kxf7 {[%clk 0:00:08]} 40. Rd8 {[%clk 0:00:33]}  Bb4 {[%clk 0:00:08]} 41. Rb8 {[%clk 0:00:31]}  Bd2 {[%clk 0:00:08]} 42. Kf2 {[%clk 0:00:30]}  Bc1 {[%clk 0:00:09]} 43. b3 {[%clk 0:00:29]}  Ba3 {[%clk 0:00:00]} 44. Rxb6 {[%clk 0:00:29]} 1-0


[Site "https://www.chess.com"]

[Event "Titled Tuesday Blitz May 9 Early 2023"]
[White "rionelG"]
[Black "LeoLV10"]
[WhiteElo "2204"]
[BlackElo "2389"]
[Result "0-1"]
[Round "03"]
[TimeControl "180+2"]
[Date "2023.05.09"]
[WhiteClock "0:00:00"]
[BlackClock "0:00:08"]

1. e4 {[%clk 0:03:00]}  c6 {[%clk 0:02:58]} 2. d4 {[%clk 0:03:00]}  d5 {[%clk 0:02:59]} 3. e5 {[%clk 0:03:01]}  c5 {[%clk 0:02:59]} 4. dxc5 {[%clk 0:03:00]}  e6 {[%clk 0:03:00]} 5. a3 {[%clk 0:03:00]}  Bxc5 {[%clk 0:03:00]} 6. b4 {[%clk 0:03:00]}  Bb6 {[%clk 0:02:59]} 7. Qg4 {[%clk 0:02:59]}  Ne7 {[%clk 0:02:54]} 8. Qxg7 {[%clk 0:02:47]}  Rg8 {[%clk 0:02:54]} 9. Qxh7 {[%clk 0:02:47]}  Bd4 {[%clk 0:02:54]} 10. c3 {[%clk 0:02:39]}  Bxe5 {[%clk 0:02:54]} 11. Nf3 {[%clk 0:02:39]}  Bf6 {[%clk 0:02:52]} 12. h4 {[%clk 0:02:33]}  Rh8 {[%clk 0:02:36]} 13. Qc2 {[%clk 0:02:25]}  e5 {[%clk 0:02:35]} 14. Bg5 {[%clk 0:02:17]}  Bxg5 {[%clk 0:02:24]} 15. Nxg5 {[%clk 0:02:18]}  Bf5 {[%clk 0:02:24]} 16. Bd3 {[%clk 0:02:12]}  Bxd3 {[%clk 0:02:22]} 17. Qxd3 {[%clk 0:02:11]}  e4 {[%clk 0:02:23]} 18. Qg3 {[%clk 0:01:59]}  Nd7 {[%clk 0:01:18]} 19. Qf4 {[%clk 0:01:25]}  Rf8 {[%clk 0:01:17]} 20. Nh7 {[%clk 0:01:25]}  Ng6 {[%clk 0:01:17]} 21. Qf5 {[%clk 0:01:13]}  Rh8 {[%clk 0:01:12]} 22. Ng5 {[%clk 0:01:06]}  Nde5 {[%clk 0:01:09]} 23. Nxf7 {[%clk 0:01:01]}  Nxf7 {[%clk 0:01:03]} 24. Qxg6 {[%clk 0:01:01]}  Qe7 {[%clk 0:00:59]} 25. Nd2 {[%clk 0:00:44]}  O-O-O {[%clk 0:00:54]} 26. O-O-O {[%clk 0:00:37]}  Ne5 {[%clk 0:00:51]} 27. Qf5+ {[%clk 0:00:32]}  Kb8 {[%clk 0:00:51]} 28. Kc2 {[%clk 0:00:29]}  Nd3 {[%clk 0:00:49]} 29. c4 {[%clk 0:00:23]}  Rhf8 {[%clk 0:00:47]} 30. Qg5 {[%clk 0:00:23]}  Qc7 {[%clk 0:00:32]} 31. Rdf1 {[%clk 0:00:13]}  Ka8 {[%clk 0:00:15]} 32. c5 {[%clk 0:00:12]}  Qc6 {[%clk 0:00:15]} 33. Nb3 {[%clk 0:00:12]}  Qb5 {[%clk 0:00:13]} 34. Qe3 {[%clk 0:00:10]}  Qc4+ {[%clk 0:00:13]} 35. Kd2 {[%clk 0:00:06]}  Qxb3 {[%clk 0:00:13]} 36. Qd4 {[%clk 0:00:06]}  Qa2+ {[%clk 0:00:13]} 37. Ke3 {[%clk 0:00:06]}  Rxf2 {[%clk 0:00:11]} 38. Re1 {[%clk 0:00:00]}  Rf3+ {[%clk 0:00:08]} 0-1


[Site "https://www.chess.com"]

[Event "Titled Tuesday Blitz May 9 Early 2023"]
[White "Rottenwohrer Suarez, Juan"]
[Black "Yang,ching Wei, Austin"]
[WhiteFideId "32068182"]
[BlackFideId "16300440"]
[WhiteElo "2174"]
[BlackElo "2101"]
[Result "1-0"]
[Round "03"]
[TimeControl "180+2"]
[Date "2023.05.09"]
[WhiteClock "0:00:11"]
[BlackClock "0:00:00"]

1. d4 {[%clk 0:03:00]}  d5 {[%clk 0:03:00]} 2. c4 {[%clk 0:02:59]}  c6 {[%clk 0:03:00]} 3. Nf3 {[%clk 0:02:57]}  Nf6 {[%clk 0:03:00]} 4. Nc3 {[%clk 0:02:58]}  e6 {[%clk 0:03:01]} 5. Bg5 {[%clk 0:02:57]}  Nbd7 {[%clk 0:03:00]} 6. e3 {[%clk 0:02:56]}  Qa5 {[%clk 0:03:00]} 7. cxd5 {[%clk 0:02:56]}  Nxd5 {[%clk 0:02:53]} 8. Qd2 {[%clk 0:02:56]}  Bb4 {[%clk 0:02:47]} 9. Rc1 {[%clk 0:02:56]}  Nxc3 {[%clk 0:02:47]} 10. bxc3 {[%clk 0:02:56]}  Ba3 {[%clk 0:02:47]} 11. Rb1 {[%clk 0:02:56]}  b6 {[%clk 0:02:47]} 12. Be2 {[%clk 0:02:49]}  Ba6 {[%clk 0:02:43]} 13. O-O {[%clk 0:02:49]}  Bxe2 {[%clk 0:02:42]} 14. Qxe2 {[%clk 0:02:50]}  O-O {[%clk 0:02:42]} 15. c4 {[%clk 0:02:41]}  e5 {[%clk 0:02:39]} 16. Rfd1 {[%clk 0:02:30]}  e4 {[%clk 0:02:12]} 17. Ne5 {[%clk 0:02:19]}  Nxe5 {[%clk 0:02:05]} 18. dxe5 {[%clk 0:02:18]}  Qxe5 {[%clk 0:02:06]} 19. Bf4 {[%clk 0:02:16]}  Qe7 {[%clk 0:02:02]} 20. Qc2 {[%clk 0:01:53]}  Rfd8 {[%clk 0:01:48]} 21. h3 {[%clk 0:01:52]}  Rxd1+ {[%clk 0:01:41]} 22. Qxd1 {[%clk 0:01:47]}  c5 {[%clk 0:00:49]} 23. Qa4 {[%clk 0:01:38]}  Bb4 {[%clk 0:00:48]} 24. Rd1 {[%clk 0:01:38]}  Ba5 {[%clk 0:00:32]} 25. Qc6 {[%clk 0:01:18]}  Qe8 {[%clk 0:00:32]} 26. Qc7 {[%clk 0:01:06]}  Bc3 {[%clk 0:00:27]} 27. Rd7 {[%clk 0:01:00]}  Bf6 {[%clk 0:00:22]} 28. g4 {[%clk 0:00:53]}  g6 {[%clk 0:00:17]} 29. Qb7 {[%clk 0:00:47]}  Bg7 {[%clk 0:00:16]} 30. Rxf7 {[%clk 0:00:44]}  Qxf7 {[%clk 0:00:15]} 31. Qxa8+ {[%clk 0:00:43]}  Bf8 {[%clk 0:00:12]} 32. Qxe4 {[%clk 0:00:43]}  Kg7 {[%clk 0:00:09]} 33. Be5+ {[%clk 0:00:34]}  Kg8 {[%clk 0:00:10]} 34. f4 {[%clk 0:00:35]}  Qd7 {[%clk 0:00:09]} 35. Qd5+ {[%clk 0:00:27]}  Qxd5 {[%clk 0:00:09]} 36. cxd5 {[%clk 0:00:28]}  Kf7 {[%clk 0:00:04]} 37. Kf2 {[%clk 0:00:22]}  Ke7 {[%clk 0:00:04]} 38. Ke2 {[%clk 0:00:21]}  Kd7 {[%clk 0:00:04]} 39. Kd3 {[%clk 0:00:21]}  b5 {[%clk 0:00:03]} 40. e4 {[%clk 0:00:19]}  a5 {[%clk 0:00:03]} 41. Bb8 {[%clk 0:00:13]}  c4+ {[%clk 0:00:00]} 42. Kd4 {[%clk 0:00:11]} 1-0


[Site "https://www.chess.com"]

[Event "Titled Tuesday Blitz May 9 Early 2023"]
[White "Luberanski, Jakub"]
[Black "Chemin, Justo Reinaldo"]
[WhiteFideId "21830509"]
[BlackFideId "2101580"]
[WhiteElo "2255"]
[BlackElo "1940"]
[Result "1-0"]
[Round "03"]
[TimeControl "180+2"]
[Date "2023.05.09"]
[WhiteClock "0:00:09"]
[BlackClock "0:00:45"]

1. e4 {[%clk 0:03:00]}  e6 {[%clk 0:03:00]} 2. d4 {[%clk 0:03:00]}  d5 {[%clk 0:03:00]} 3. Nd2 {[%clk 0:03:01]}  dxe4 {[%clk 0:03:00]} 4. Nxe4 {[%clk 0:03:01]}  Qd5 {[%clk 0:03:00]} 5. Bd3 {[%clk 0:02:48]}  f5 {[%clk 0:03:00]} 6. c4 {[%clk 0:02:15]}  Qxd4 {[%clk 0:02:58]} 7. Nf3 {[%clk 0:02:11]}  Bb4+ {[%clk 0:02:57]} 8. Ke2 {[%clk 0:02:06]}  Qd8 {[%clk 0:02:49]} 9. Bg5 {[%clk 0:02:03]}  Be7 {[%clk 0:02:47]} 10. Bxe7 {[%clk 0:01:55]}  Qxe7 {[%clk 0:02:42]} 11. Neg5 {[%clk 0:01:50]}  h6 {[%clk 0:02:36]} 12. Nh3 {[%clk 0:01:49]}  g5 {[%clk 0:02:34]} 13. Re1 {[%clk 0:01:47]}  g4 {[%clk 0:02:28]} 14. Ne5 {[%clk 0:01:46]}  gxh3 {[%clk 0:02:26]} 15. Ng6 {[%clk 0:01:40]}  Qf6 {[%clk 0:02:22]} 16. Nxh8 {[%clk 0:01:41]}  Qxh8 {[%clk 0:02:20]} 17. g4 {[%clk 0:01:21]}  Qe5+ {[%clk 0:02:06]} 18. Kd2 {[%clk 0:01:11]}  Qxb2+ {[%clk 0:02:04]} 19. Bc2 {[%clk 0:01:02]}  Qd4+ {[%clk 0:02:01]} 20. Bd3 {[%clk 0:01:02]}  Qxg4 {[%clk 0:01:56]} 21. Qa4+ {[%clk 0:00:57]}  Nc6 {[%clk 0:01:52]} 22. Rg1 {[%clk 0:00:56]}  Qf4+ {[%clk 0:01:49]} 23. Ke2 {[%clk 0:00:47]}  Ne7 {[%clk 0:01:49]} 24. Rg3 {[%clk 0:00:32]}  Bd7 {[%clk 0:01:43]} 25. Rb1 {[%clk 0:00:29]}  O-O-O {[%clk 0:01:41]} 26. Qa3 {[%clk 0:00:20]}  Nd4+ {[%clk 0:01:34]} 27. Kf1 {[%clk 0:00:20]}  Nec6 {[%clk 0:01:34]} 28. Qb2 {[%clk 0:00:19]}  b6 {[%clk 0:01:30]} 29. c5 {[%clk 0:00:19]}  Ne5 {[%clk 0:01:13]} 30. Ba6+ {[%clk 0:00:19]}  Kb8 {[%clk 0:01:13]} 31. cxb6 {[%clk 0:00:19]}  cxb6 {[%clk 0:01:11]} 32. Rc3 {[%clk 0:00:17]}  Ndf3 {[%clk 0:01:01]} 33. Qc1 {[%clk 0:00:14]}  Nxh2+ {[%clk 0:01:01]} 34. Kg1 {[%clk 0:00:14]}  Rg8+ {[%clk 0:01:00]} 35. Kh1 {[%clk 0:00:14]}  Qf3+ {[%clk 0:01:00]} 36. Rxf3 {[%clk 0:00:14]}  Nhxf3 {[%clk 0:00:58]} 37. Qa3 {[%clk 0:00:09]}  Kc7 {[%clk 0:00:49]} 38. Rc1+ {[%clk 0:00:09]}  Kd8 {[%clk 0:00:47]} 39. Qd6 {[%clk 0:00:09]}  h2 {[%clk 0:00:45]} 40. Rc8# {[%clk 0:00:09]} 1-0


[Site "https://www.chess.com"]

[Event "Titled Tuesday Blitz May 9 Early 2023"]
[White "Fajdetic, Hrvoje"]
[Black "Torres Dominguez, David"]
[WhiteFideId "14501945"]
[BlackFideId "2220857"]
[WhiteElo "2185"]
[BlackElo "1999"]
[Result "1-0"]
[Round "03"]
[TimeControl "180+2"]
[Date "2023.05.09"]
[WhiteClock "0:00:36"]
[BlackClock "0:00:29"]

1. d4 {[%clk 0:03:00]}  e5 {[%clk 0:02:59]} 2. dxe5 {[%clk 0:03:00]}  d6 {[%clk 0:03:00]} 3. Nf3 {[%clk 0:02:56]}  Bg4 {[%clk 0:02:59]} 4. c3 {[%clk 0:02:54]}  Nc6 {[%clk 0:02:58]} 5. exd6 {[%clk 0:02:53]}  Bxd6 {[%clk 0:02:58]} 6. Qa4 {[%clk 0:02:52]}  Nf6 {[%clk 0:02:56]} 7. Bg5 {[%clk 0:02:51]}  h6 {[%clk 0:02:51]} 8. Bxf6 {[%clk 0:02:50]}  Qxf6 {[%clk 0:02:47]} 9. Qxg4 {[%clk 0:02:49]}  O-O {[%clk 0:02:43]} 10. e3 {[%clk 0:02:47]}  Rad8 {[%clk 0:02:37]} 11. Be2 {[%clk 0:02:47]}  Nb4 {[%clk 0:02:30]} 12. Na3 {[%clk 0:02:42]}  Rfe8 {[%clk 0:02:15]} 13. O-O {[%clk 0:02:38]}  Nc6 {[%clk 0:02:13]} 14. Rad1 {[%clk 0:02:24]}  a6 {[%clk 0:02:11]} 15. Nc4 {[%clk 0:02:23]}  Bf8 {[%clk 0:02:11]} 16. Rxd8 {[%clk 0:02:20]}  Nxd8 {[%clk 0:02:11]} 17. Qd7 {[%clk 0:02:08]}  Re4 {[%clk 0:01:55]} 18. Qxc7 {[%clk 0:01:49]}  Ne6 {[%clk 0:01:51]} 19. Qxb7 {[%clk 0:01:43]}  Rg4 {[%clk 0:01:50]} 20. Nd4 {[%clk 0:01:33]}  Rg5 {[%clk 0:01:28]} 21. Nxe6 {[%clk 0:01:09]}  Qxe6 {[%clk 0:01:25]} 22. Nd2 {[%clk 0:01:01]}  Rg6 {[%clk 0:01:16]} 23. Bc4 {[%clk 0:00:58]}  Qf5 {[%clk 0:01:13]} 24. Ne4 {[%clk 0:00:46]}  Kh7 {[%clk 0:01:05]} 25. Ng3 {[%clk 0:00:44]}  Qf6 {[%clk 0:00:55]} 26. Qxf7 {[%clk 0:00:43]}  Qxf7 {[%clk 0:00:45]} 27. Bxf7 {[%clk 0:00:44]}  Rb6 {[%clk 0:00:45]} 28. Bb3 {[%clk 0:00:44]}  a5 {[%clk 0:00:45]} 29. Rb1 {[%clk 0:00:42]}  Be7 {[%clk 0:00:42]} 30. Nf5 {[%clk 0:00:41]}  Bf6 {[%clk 0:00:43]} 31. Nd4 {[%clk 0:00:41]}  h5 {[%clk 0:00:40]} 32. g3 {[%clk 0:00:41]}  g6 {[%clk 0:00:40]} 33. h4 {[%clk 0:00:40]}  Kg7 {[%clk 0:00:40]} 34. Bc2 {[%clk 0:00:39]}  Kf7 {[%clk 0:00:37]} 35. b4 {[%clk 0:00:38]}  a4 {[%clk 0:00:34]} 36. Bxa4 {[%clk 0:00:37]}  Ke7 {[%clk 0:00:33]} 37. Bb3 {[%clk 0:00:37]}  Be5 {[%clk 0:00:29]} 38. a4 {[%clk 0:00:36]} 1-0


[Site "https://www.chess.com"]

[Event "Titled Tuesday Blitz May 9 Early 2023"]
[White "Manon-og, Ramon Jr."]
[Black "Maluco_do_Natal_00"]
[WhiteFideId "5200776"]
[WhiteElo "2332"]
[BlackElo "2021"]
[Result "1-0"]
[Round "03"]
[TimeControl "180+2"]
[Date "2023.05.09"]
[WhiteClock "0:01:38"]
[BlackClock "0:00:00"]

1. e4 {[%clk 0:02:59]}  c5 {[%clk 0:02:59]} 2. Nf3 {[%clk 0:03:00]}  Nc6 {[%clk 0:02:59]} 3. Bb5 {[%clk 0:03:00]}  e6 {[%clk 0:02:59]} 4. Bxc6 {[%clk 0:02:59]}  bxc6 {[%clk 0:02:59]} 5. O-O {[%clk 0:02:58]}  Ne7 {[%clk 0:02:59]} 6. c4 {[%clk 0:02:57]}  Ng6 {[%clk 0:02:59]} 7. Nc3 {[%clk 0:02:57]}  e5 {[%clk 0:02:58]} 8. d3 {[%clk 0:02:57]}  d6 {[%clk 0:02:58]} 9. h3 {[%clk 0:02:55]}  Be7 {[%clk 0:02:58]} 10. Be3 {[%clk 0:02:55]}  O-O {[%clk 0:02:58]} 11. Qd2 {[%clk 0:02:50]}  f5 {[%clk 0:02:56]} 12. exf5 {[%clk 0:02:49]}  Bxf5 {[%clk 0:02:56]} 13. Ne4 {[%clk 0:02:49]}  Bxh3 {[%clk 0:02:42]} 14. Nfg5 {[%clk 0:02:40]}  Bf5 {[%clk 0:02:33]} 15. a3 {[%clk 0:02:08]}  a5 {[%clk 0:01:38]} 16. Ng3 {[%clk 0:02:05]}  Bg4 {[%clk 0:01:31]} 17. b4 {[%clk 0:01:59]}  cxb4 {[%clk 0:01:24]} 18. axb4 {[%clk 0:02:00]}  axb4 {[%clk 0:01:01]} 19. Rxa8 {[%clk 0:01:55]}  Qxa8 {[%clk 0:01:00]} 20. Qxb4 {[%clk 0:01:56]}  h6 {[%clk 0:00:51]} 21. N5e4 {[%clk 0:01:54]}  Rb8 {[%clk 0:00:22]} 22. Qd2 {[%clk 0:01:53]}  Kh7 {[%clk 0:00:15]} 23. f3 {[%clk 0:01:48]}  Bd7 {[%clk 0:00:12]} 24. Nh5 {[%clk 0:01:48]}  Rg8 {[%clk 0:00:08]} 25. f4 {[%clk 0:01:47]}  exf4 {[%clk 0:00:07]} 26. Nxf4 {[%clk 0:01:47]}  Nxf4 {[%clk 0:00:07]} 27. Bxf4 {[%clk 0:01:48]}  Qb8 {[%clk 0:00:04]} 28. c5 {[%clk 0:01:47]}  Qa7 {[%clk 0:00:03]} 29. d4 {[%clk 0:01:43]}  d5 {[%clk 0:00:03]} 30. Nd6 {[%clk 0:01:40]}  Bxd6 {[%clk 0:00:02]} 31. Bxd6 {[%clk 0:01:38]}  Re8 {[%clk 0:00:00]} 32. Qd3+ {[%clk 0:01:38]} 1-0


[Site "https://www.chess.com"]

[Event "Titled Tuesday Blitz May 9 Early 2023"]
[White "Zampronha, Wladimir Camilo"]
[Black "Panico, Nick"]
[WhiteFideId "2103087"]
[BlackFideId "2026724"]
[WhiteElo "2176"]
[BlackElo "1982"]
[Result "1-0"]
[Round "03"]
[TimeControl "180+2"]
[Date "2023.05.09"]
[WhiteClock "0:00:20"]
[BlackClock "0:00:37"]

1. e4 {[%clk 0:03:00]}  e6 {[%clk 0:02:57]} 2. d4 {[%clk 0:03:00]}  d5 {[%clk 0:02:57]} 3. Nc3 {[%clk 0:03:00]}  Nf6 {[%clk 0:02:47]} 4. e5 {[%clk 0:03:00]}  Nfd7 {[%clk 0:02:47]} 5. f4 {[%clk 0:03:01]}  c5 {[%clk 0:02:48]} 6. Nf3 {[%clk 0:03:01]}  Nc6 {[%clk 0:02:48]} 7. Be3 {[%clk 0:03:02]}  a6 {[%clk 0:02:47]} 8. Qd2 {[%clk 0:03:00]}  cxd4 {[%clk 0:02:47]} 9. Nxd4 {[%clk 0:03:00]}  Bc5 {[%clk 0:02:47]} 10. O-O-O {[%clk 0:02:56]}  Nxd4 {[%clk 0:02:47]} 11. Bxd4 {[%clk 0:02:56]}  b5 {[%clk 0:02:47]} 12. h4 {[%clk 0:02:50]}  O-O {[%clk 0:02:47]} 13. Rh3 {[%clk 0:02:49]}  Qc7 {[%clk 0:02:40]} 14. Kb1 {[%clk 0:02:46]}  b4 {[%clk 0:02:38]} 15. Na4 {[%clk 0:02:45]}  Bxd4 {[%clk 0:02:37]} 16. Qxd4 {[%clk 0:02:44]}  a5 {[%clk 0:02:36]} 17. c4 {[%clk 0:02:32]}  bxc3 {[%clk 0:02:11]} 18. Rxc3 {[%clk 0:02:30]}  Qb8 {[%clk 0:02:04]} 19. Rdc1 {[%clk 0:02:25]}  Ba6 {[%clk 0:02:01]} 20. Bxa6 {[%clk 0:02:23]}  Rxa6 {[%clk 0:02:02]} 21. Rc7 {[%clk 0:02:21]}  Nb6 {[%clk 0:01:59]} 22. R7c6 {[%clk 0:02:00]}  Nxa4 {[%clk 0:01:20]} 23. Rxa6 {[%clk 0:02:01]}  Qb5 {[%clk 0:01:14]} 24. Rac6 {[%clk 0:01:54]}  h6 {[%clk 0:01:11]} 25. b3 {[%clk 0:01:52]}  Rb8 {[%clk 0:01:10]} 26. Rc8+ {[%clk 0:01:49]}  Rxc8 {[%clk 0:01:09]} 27. Rxc8+ {[%clk 0:01:50]}  Kh7 {[%clk 0:01:10]} 28. Qxa4 {[%clk 0:01:44]}  Qf1+ {[%clk 0:01:10]} 29. Rc1 {[%clk 0:01:40]}  Qxg2 {[%clk 0:01:09]} 30. Qxa5 {[%clk 0:01:36]}  Qe4+ {[%clk 0:01:09]} 31. Ka1 {[%clk 0:01:32]}  Qxf4 {[%clk 0:01:09]} 32. Qc3 {[%clk 0:01:30]}  d4 {[%clk 0:01:08]} 33. Qc2+ {[%clk 0:01:29]}  Kh8 {[%clk 0:01:04]} 34. Rd1 {[%clk 0:01:08]}  Qxe5 {[%clk 0:01:03]} 35. Qd3 {[%clk 0:01:08]}  Qa5 {[%clk 0:00:55]} 36. Qxd4 {[%clk 0:01:07]}  Kh7 {[%clk 0:00:55]} 37. Qd3+ {[%clk 0:01:05]}  g6 {[%clk 0:00:53]} 38. Rf1 {[%clk 0:00:50]}  Kg7 {[%clk 0:00:51]} 39. Kb2 {[%clk 0:00:44]}  g5 {[%clk 0:00:48]} 40. Qc3+ {[%clk 0:00:40]}  Qxc3+ {[%clk 0:00:49]} 41. Kxc3 {[%clk 0:00:41]}  g4 {[%clk 0:00:49]} 42. b4 {[%clk 0:00:40]}  f5 {[%clk 0:00:50]} 43. Kd4 {[%clk 0:00:38]}  Kf6 {[%clk 0:00:49]} 44. b5 {[%clk 0:00:38]}  e5+ {[%clk 0:00:50]} 45. Ke3 {[%clk 0:00:36]}  g3 {[%clk 0:00:45]} 46. b6 {[%clk 0:00:33]}  f4+ {[%clk 0:00:41]} 47. Kf3 {[%clk 0:00:33]}  Kf5 {[%clk 0:00:40]} 48. b7 {[%clk 0:00:30]}  e4+ {[%clk 0:00:41]} 49. Kg2 {[%clk 0:00:30]}  Kg4 {[%clk 0:00:40]} 50. b8=Q {[%clk 0:00:29]}  f3+ {[%clk 0:00:41]} 51. Kg1 {[%clk 0:00:27]}  e3 {[%clk 0:00:41]} 52. Qb4+ {[%clk 0:00:23]}  Kh3 {[%clk 0:00:40]} 53. Rxf3 {[%clk 0:00:21]}  e2 {[%clk 0:00:39]} 54. Qe1 {[%clk 0:00:19]}  Kxh4 {[%clk 0:00:37]} 55. Qxg3+ {[%clk 0:00:19]}  Kh5 {[%clk 0:00:37]} 56. Rf5# {[%clk 0:00:20]} 1-0


[Site "https://www.chess.com"]